[Event "Early-Titled-Tuesday-Blitz-February-06-2024"]
[Site "Chess.com"]
[Date "2024.02.06"]
[Round "8"]
[White "Actuary44"]
[Black "bylavochka"]
[Result "0-1"]
[WhiteElo "2474"]
[BlackElo "2328"]
[TimeControl "180+1"]
[EndTime "9:28:43 PST"]
[Termination "bylavochka won by checkmate"]

1. e4 {[%clk 0:03:00.9]} 1... c5 {[%clk 0:02:55.3]} 2. d4 {[%clk 0:03:00.7]}
2... cxd4 {[%clk 0:02:55.5]} 3. c3 {[%clk 0:03:01.4]} 3... Nf6 {[%clk
0:02:51.6]} 4. Bd3 {[%clk 0:03:01]} 4... d6 {[%clk 0:02:41.9]} 5. f4 {[%clk
0:03:00.6]} 5... g6 {[%clk 0:02:41.7]} 6. cxd4 {[%clk 0:03:00.3]} 6... Bg7
{[%clk 0:02:41.5]} 7. Nf3 {[%clk 0:03:00.8]} 7... O-O {[%clk 0:02:40.6]} 8. O-O
{[%clk 0:03:00.8]} 8... Nc6 {[%clk 0:02:40.7]} 9. Nc3 {[%clk 0:03:00.5]} 9...
Bg4 {[%clk 0:02:27.6]} 10. Be3 {[%clk 0:02:58.6]} 10... Bd7 {[%clk 0:02:17.3]}
11. h3 {[%clk 0:02:55.8]} 11... Rc8 {[%clk 0:01:59.5]} 12. Qe1 {[%clk
0:02:55.6]} 12... Na5 {[%clk 0:01:54.6]} 13. Rd1 {[%clk 0:02:51.7]} 13... Nc4
{[%clk 0:01:54.5]} 14. Bc1 {[%clk 0:02:51.7]} 14... a6 {[%clk 0:01:44.1]} 15.
Qh4 {[%clk 0:02:50.6]} 15... b5 {[%clk 0:01:41.1]} 16. e5 {[%clk 0:02:46.7]}
16... b4 {[%clk 0:01:32.5]} 17. Ne2 {[%clk 0:02:38.3]} 17... Nd5 {[%clk
0:01:29.7]} 18. Bxc4 {[%clk 0:01:47.6]} 18... Rxc4 {[%clk 0:01:28.9]} 19. Ng5
{[%clk 0:01:48.5]} 19... h6 {[%clk 0:01:21.6]} 20. Ne4 {[%clk 0:01:48.6]} 20...
Qb6 {[%clk 0:01:00.7]} 21. N2g3 {[%clk 0:01:38.8]} 21... Rxd4 {[%clk 0:00:58.3]}
22. Kh2 {[%clk 0:01:32.9]} 22... Bb5 {[%clk 0:00:26.6]} 23. Rfe1 {[%clk
0:01:24.6]} 23... dxe5 {[%clk 0:00:25.1]} 24. f5 {[%clk 0:01:14.1]} 24... Rxd1
{[%clk 0:00:18.4]} 25. Rxd1 {[%clk 0:01:13.6]} 25... Ne3 {[%clk 0:00:19.1]} 26.
Bxe3 {[%clk 0:00:57.8]} 26... Qxe3 {[%clk 0:00:20]} 27. fxg6 {[%clk 0:00:56.1]}
27... fxg6 {[%clk 0:00:20.9]} 28. Qxe7 {[%clk 0:00:55.9]} 28... Rf4 {[%clk
0:00:10.4]} 29. Rd8+ {[%clk 0:00:47.1]} 29... Kh7 {[%clk 0:00:09.5]} 30. Qe6
{[%clk 0:00:47.6]} 30... h5 {[%clk 0:00:06.3]} 31. Ng5+ {[%clk 0:00:42.5]} 31...
Kh6 {[%clk 0:00:06.7]} 32. Nf7+ {[%clk 0:00:28.7]} 32... Kh7 {[%clk 0:00:05.3]}
33. Qc8 {[%clk 0:00:24.1]} 33... Rxf7 {[%clk 0:00:04.7]} 34. Qe6 {[%clk
0:00:17.9]} 34... Qf4 {[%clk 0:00:05.1]} 35. Kh1 {[%clk 0:00:12.5]} 35... Qc1+
{[%clk 0:00:02.4]} 36. Kh2 {[%clk 0:00:12.3]} 36... Qf4 {[%clk 0:00:03.2]} 37.
Kh1 {[%clk 0:00:12.8]} 37... Rf6 {[%clk 0:00:03.7]} 38. Qb3 {[%clk 0:00:04.6]}
38... Bf1 {[%clk 0:00:04]} 39. Rd7 {[%clk 0:00:02.9]} 39... Bxg2+ {[%clk
0:00:03.3]} 40. Kxg2 {[%clk 0:00:03]} 40... Qf2+ {[%clk 0:00:03.9]} 41. Kh1
{[%clk 0:00:03.7]} 41... Qe1+ {[%clk 0:00:04.3]} 42. Kg2 {[%clk 0:00:02.3]}
42... Rf2# {[%clk 0:00:04.7]} 0-1

[Event "Early-Titled-Tuesday-Blitz-February-06-2024"]
[Site "Chess.com"]
[Date "2024.02.06"]
[Round "8"]
[White "agvania123"]
[Black "djano"]
[Result "0-1"]
[WhiteElo "2341"]
[BlackElo "2612"]
[TimeControl "180+1"]
[EndTime "9:28:44 PST"]
[Termination "djano won by checkmate"]

1. c4 {[%clk 0:03:00.9]} 1... e6 {[%clk 0:02:58.6]} 2. Nc3 {[%clk 0:03:00.6]}
2... d5 {[%clk 0:02:59.2]} 3. cxd5 {[%clk 0:02:59.7]} 3... exd5 {[%clk
0:02:59.7]} 4. d4 {[%clk 0:03:00.2]} 4... c5 {[%clk 0:02:59.5]} 5. Nf3 {[%clk
0:02:59.1]} 5... Nc6 {[%clk 0:02:59.5]} 6. e3 {[%clk 0:02:57.9]} 6... Nf6 {[%clk
0:02:59.4]} 7. Be2 {[%clk 0:02:57.9]} 7... Bd6 {[%clk 0:02:59.7]} 8. dxc5 {[%clk
0:02:56.3]} 8... Bxc5 {[%clk 0:03:00.6]} 9. O-O {[%clk 0:02:56.5]} 9... O-O
{[%clk 0:03:00.8]} 10. b3 {[%clk 0:02:56.9]} 10... a6 {[%clk 0:02:53.3]} 11. Bb2
{[%clk 0:02:56.8]} 11... Bd6 {[%clk 0:02:52.8]} 12. Rc1 {[%clk 0:02:46.3]} 12...
Bf5 {[%clk 0:02:43.1]} 13. Kh1 {[%clk 0:02:35.8]} 13... Bc7 {[%clk 0:02:33.2]}
14. Na4 {[%clk 0:02:30.4]} 14... Ne4 {[%clk 0:02:26.5]} 15. Nc5 {[%clk
0:02:07.7]} 15... Nxc5 {[%clk 0:02:10]} 16. Rxc5 {[%clk 0:02:08.6]} 16... Be4
{[%clk 0:02:03.6]} 17. Rc1 {[%clk 0:00:59.4]} 17... Qd6 {[%clk 0:01:55.5]} 18.
g3 {[%clk 0:00:58.3]} 18... Rfd8 {[%clk 0:01:48.9]} 19. Bd3 {[%clk 0:00:54]}
19... Qh6 {[%clk 0:01:40.8]} 20. Qe2 {[%clk 0:00:44.9]} 20... Qh5 {[%clk
0:01:25.6]} 21. Kg2 {[%clk 0:00:20.2]} 21... Be5 {[%clk 0:01:10.1]} 22. Bxe5
{[%clk 0:00:18.1]} 22... Qxe5 {[%clk 0:00:44.6]} 23. Bxe4 {[%clk 0:00:16.9]}
23... Qxe4 {[%clk 0:00:45.5]} 24. Qc2 {[%clk 0:00:15.9]} 24... Nb4 {[%clk
0:00:39.5]} 25. Qxe4 {[%clk 0:00:15.2]} 25... dxe4 {[%clk 0:00:40.4]} 26. Nd4
{[%clk 0:00:15.8]} 26... Nxa2 {[%clk 0:00:40.5]} 27. Rc7 {[%clk 0:00:15.9]}
27... b5 {[%clk 0:00:41]} 28. Ra1 {[%clk 0:00:15]} 28... Nb4 {[%clk 0:00:41]}
29. Rac1 {[%clk 0:00:14.1]} 29... Nd5 {[%clk 0:00:41]} 30. Rb7 {[%clk
0:00:11.8]} 30... g6 {[%clk 0:00:35]} 31. Rc5 {[%clk 0:00:11.9]} 31... Rd6
{[%clk 0:00:29.5]} 32. Nc6 {[%clk 0:00:09.9]} 32... Kg7 {[%clk 0:00:22.6]} 33.
Ne5 {[%clk 0:00:08.6]} 33... Rf8 {[%clk 0:00:19.7]} 34. Nd7 {[%clk 0:00:07.7]}
34... Re8 {[%clk 0:00:17.5]} 35. Nb8 {[%clk 0:00:04.6]} 35... Ree6 {[%clk
0:00:15]} 36. Rc8 {[%clk 0:00:02.1]} 36... h5 {[%clk 0:00:13]} 37. h3 {[%clk
0:00:02.7]} 37... b4 {[%clk 0:00:12.7]} 38. h4 {[%clk 0:00:03.2]} 38... Rf6
{[%clk 0:00:11.1]} 39. Ra7 {[%clk 0:00:02.9]} 39... Nc3 {[%clk 0:00:11]} 40.
Rcc7 {[%clk 0:00:01.9]} 40... Rd2 {[%clk 0:00:10.5]} 41. Nd7 {[%clk 0:00:01.5]}
41... Rfxf2+ {[%clk 0:00:10.5]} 42. Kg1 {[%clk 0:00:02]} 42... Rg2+ {[%clk
0:00:09.6]} 43. Kh1 {[%clk 0:00:02.3]} 43... Rge2 {[%clk 0:00:07.5]} 44. Ne5
{[%clk 0:00:01.8]} 44... Rd1# {[%clk 0:00:07.9]} 0-1

[Event "Early-Titled-Tuesday-Blitz-February-06-2024"]
[Site "Chess.com"]
[Date "2024.02.06"]
[Round "8"]
[White "emeli_chess"]
[Black "WiktoriaPOL"]
[Result "0-1"]
[WhiteElo "2402"]
[BlackElo "2277"]
[TimeControl "180+1"]
[EndTime "9:28:44 PST"]
[Termination "WiktoriaPOL won by checkmate"]

1. d4 {[%clk 0:03:00.9]} 1... Nf6 {[%clk 0:02:58.6]} 2. c4 {[%clk 0:03:00.8]}
2... g6 {[%clk 0:02:59.2]} 3. Nc3 {[%clk 0:03:01.1]} 3... Bg7 {[%clk 0:02:59.9]}
4. e4 {[%clk 0:03:01.4]} 4... d6 {[%clk 0:03:00.5]} 5. f3 {[%clk 0:03:01.6]}
5... O-O {[%clk 0:03:01.2]} 6. Be3 {[%clk 0:03:02]} 6... e5 {[%clk 0:03:00.7]}
7. d5 {[%clk 0:03:01.7]} 7... Nh5 {[%clk 0:02:55.6]} 8. Qd2 {[%clk 0:03:01.4]}
8... f5 {[%clk 0:02:54.4]} 9. O-O-O {[%clk 0:03:01.6]} 9... f4 {[%clk
0:02:52.7]} 10. Bf2 {[%clk 0:03:01.9]} 10... a6 {[%clk 0:02:44.6]} 11. Nge2
{[%clk 0:02:59.6]} 11... Bd7 {[%clk 0:02:40.6]} 12. c5 {[%clk 0:02:51.5]} 12...
Qe7 {[%clk 0:02:30.4]} 13. cxd6 {[%clk 0:02:36.7]} 13... cxd6 {[%clk 0:02:31.3]}
14. Kb1 {[%clk 0:02:36.5]} 14... b5 {[%clk 0:02:30.3]} 15. Nc1 {[%clk
0:02:32.9]} 15... b4 {[%clk 0:02:28.3]} 16. N3e2 {[%clk 0:02:31.5]} 16... a5
{[%clk 0:02:25.6]} 17. Nd3 {[%clk 0:02:30.8]} 17... Ba4 {[%clk 0:02:21.1]} 18.
Rc1 {[%clk 0:02:30.4]} 18... Na6 {[%clk 0:02:19.5]} 19. g4 {[%clk 0:01:20.8]}
19... fxg3 {[%clk 0:02:14.4]} 20. Nxg3 {[%clk 0:01:19.6]} 20... Nf4 {[%clk
0:02:11.6]} 21. Be3 {[%clk 0:01:03]} 21... Nxd3 {[%clk 0:01:54.5]} 22. Bxd3
{[%clk 0:01:00.8]} 22... Rxf3 {[%clk 0:01:45.6]} 23. Rhf1 {[%clk 0:00:56.9]}
23... Rxf1 {[%clk 0:01:45.4]} 24. Rxf1 {[%clk 0:00:52.5]} 24... Nc7 {[%clk
0:01:38.5]} 25. Bg5 {[%clk 0:00:50.6]} 25... Qd7 {[%clk 0:01:37.4]} 26. h4
{[%clk 0:00:36.2]} 26... Rf8 {[%clk 0:01:31.3]} 27. Rxf8+ {[%clk 0:00:22.4]}
27... Bxf8 {[%clk 0:01:30.9]} 28. h5 {[%clk 0:00:16.4]} 28... Qg4 {[%clk
0:01:26.8]} 29. Bd8 {[%clk 0:00:12.7]} 29... Nb5 {[%clk 0:01:14.6]} 30. Qe1
{[%clk 0:00:10.2]} 30... Nd4 {[%clk 0:00:59.5]} 31. b3 {[%clk 0:00:09.2]} 31...
Qf3 {[%clk 0:00:49.7]} 32. Bc2 {[%clk 0:00:05]} 32... Bb5 {[%clk 0:00:43.5]} 33.
Bd1 {[%clk 0:00:04]} 33... Qd3+ {[%clk 0:00:41.3]} 34. Ka1 {[%clk 0:00:04.3]}
34... a4 {[%clk 0:00:28]} 35. Ba5 {[%clk 0:00:03.2]} 35... axb3 {[%clk 0:00:27]}
36. axb3 {[%clk 0:00:03]} 36... Nxb3+ {[%clk 0:00:21.7]} 37. Bxb3 {[%clk
0:00:02.4]} 37... Qxb3 {[%clk 0:00:22.4]} 38. Bxb4 {[%clk 0:00:02.8]} 38... Bc4
{[%clk 0:00:19.6]} 39. Qd2 {[%clk 0:00:02]} 39... Qxg3 {[%clk 0:00:17.8]} 40.
Kb2 {[%clk 0:00:02.1]} 40... Qb3+ {[%clk 0:00:17.5]} 41. Kc1 {[%clk 0:00:02.4]}
41... Qd3 {[%clk 0:00:12.5]} 42. Qe1 {[%clk 0:00:01.7]} 42... Bh6+ {[%clk
0:00:11.8]} 43. Kb2 {[%clk 0:00:01.2]} 43... Qb3+ {[%clk 0:00:12]} 44. Ka1
{[%clk 0:00:01.1]} 44... Qa2# {[%clk 0:00:12.7]} 0-1

[Event "Early-Titled-Tuesday-Blitz-February-06-2024"]
[Site "Chess.com"]
[Date "2024.02.06"]
[Round "8"]
[White "mitrabhaa"]
[Black "FabianoCaruana"]
[Result "0-1"]
[WhiteElo "2914"]
[BlackElo "3057"]
[TimeControl "180+1"]
[EndTime "9:28:45 PST"]
[Termination "FabianoCaruana won by resignation"]

1. d4 {[%clk 0:02:43.9]} 1... Nf6 {[%clk 0:02:59.4]} 2. Nf3 {[%clk 0:02:43.7]}
2... d5 {[%clk 0:02:59.3]} 3. Bf4 {[%clk 0:02:43.5]} 3... e6 {[%clk 0:02:59.4]}
4. e3 {[%clk 0:02:44.2]} 4... Bd6 {[%clk 0:02:59.7]} 5. Nbd2 {[%clk 0:02:44.8]}
5... O-O {[%clk 0:02:59.2]} 6. Bd3 {[%clk 0:02:44.8]} 6... b6 {[%clk 0:02:59.2]}
7. c3 {[%clk 0:02:45]} 7... Ba6 {[%clk 0:02:58.3]} 8. Bxa6 {[%clk 0:02:45]} 8...
Nxa6 {[%clk 0:02:59.2]} 9. Qe2 {[%clk 0:02:45.7]} 9... Nb8 {[%clk 0:02:59.1]}
10. a4 {[%clk 0:02:46.3]} 10... a5 {[%clk 0:02:56.5]} 11. O-O {[%clk 0:02:46.7]}
11... Nc6 {[%clk 0:02:52.6]} 12. Bg5 {[%clk 0:02:44.4]} 12... h6 {[%clk
0:02:52.4]} 13. Bxf6 {[%clk 0:02:44.4]} 13... Qxf6 {[%clk 0:02:52.1]} 14. e4
{[%clk 0:02:45.1]} 14... dxe4 {[%clk 0:02:46.3]} 15. Nxe4 {[%clk 0:02:46]} 15...
Qd8 {[%clk 0:02:45.5]} 16. Rfe1 {[%clk 0:02:43.2]} 16... Ne7 {[%clk 0:02:45.4]}
17. Rad1 {[%clk 0:02:42.6]} 17... Nd5 {[%clk 0:02:45.1]} 18. Qb5 {[%clk
0:02:41]} 18... Qe8 {[%clk 0:02:42]} 19. Qb3 {[%clk 0:02:34.5]} 19... Rd8 {[%clk
0:02:37]} 20. Ned2 {[%clk 0:02:34.2]} 20... Be7 {[%clk 0:02:09.4]} 21. Nc4
{[%clk 0:02:27.2]} 21... Rb8 {[%clk 0:01:39.5]} 22. Ne3 {[%clk 0:02:20.5]} 22...
Nxe3 {[%clk 0:01:34.4]} 23. Rxe3 {[%clk 0:02:20.4]} 23... Bd6 {[%clk 0:01:24.9]}
24. Qb5 {[%clk 0:02:09]} 24... c6 {[%clk 0:01:22.9]} 25. Qe2 {[%clk 0:02:07.8]}
25... b5 {[%clk 0:01:18.8]} 26. axb5 {[%clk 0:02:06.4]} 26... Rxb5 {[%clk
0:01:18.7]} 27. Ra1 {[%clk 0:02:06]} 27... Qb8 {[%clk 0:01:16.7]} 28. Ra2 {[%clk
0:02:06]} 28... Qc7 {[%clk 0:01:14.5]} 29. g3 {[%clk 0:02:03.9]} 29... Rfb8
{[%clk 0:01:14.3]} 30. Ne1 {[%clk 0:01:59.2]} 30... c5 {[%clk 0:01:14.4]} 31.
dxc5 {[%clk 0:01:57.4]} 31... Bxc5 {[%clk 0:01:15.3]} 32. Re4 {[%clk 0:01:58]}
32... Be7 {[%clk 0:01:10.4]} 33. Nd3 {[%clk 0:01:55.8]} 33... Rd5 {[%clk
0:01:07.1]} 34. Nf4 {[%clk 0:01:53.1]} 34... Rf5 {[%clk 0:01:06.7]} 35. Qc4
{[%clk 0:01:48.8]} 35... Qb7 {[%clk 0:01:05]} 36. h4 {[%clk 0:01:17.8]} 36...
Rd8 {[%clk 0:01:04]} 37. Qe2 {[%clk 0:01:07.5]} 37... Bc5 {[%clk 0:00:52.9]} 38.
Rea4 {[%clk 0:01:01]} 38... Bb6 {[%clk 0:00:40.7]} 39. Ra1 {[%clk 0:00:50.2]}
39... Qe7 {[%clk 0:00:37.9]} 40. Rd1 {[%clk 0:00:42.5]} 40... Rxd1+ {[%clk
0:00:36.2]} 41. Qxd1 {[%clk 0:00:43.4]} 41... Qc7 {[%clk 0:00:36.6]} 42. Qd3
{[%clk 0:00:28.8]} 42... g5 {[%clk 0:00:31.1]} 43. Rc4 {[%clk 0:00:27.3]} 43...
Qb7 {[%clk 0:00:23.8]} 44. hxg5 {[%clk 0:00:26.6]} 44... hxg5 {[%clk 0:00:24.7]}
45. Nh3 {[%clk 0:00:26]} 45... Rf3 {[%clk 0:00:24.4]} 46. Qe4 {[%clk 0:00:12.4]}
46... Qxe4 {[%clk 0:00:22.1]} 47. Rxe4 {[%clk 0:00:13.3]} 47... Rxg3+ {[%clk
0:00:21.3]} 48. Kh2 {[%clk 0:00:13.7]} 48... Rd3 {[%clk 0:00:20]} 49. Re5 {[%clk
0:00:11.5]} 49... Bc7 {[%clk 0:00:20]} 0-1

[Event "Early-Titled-Tuesday-Blitz-February-06-2024"]
[Site "Chess.com"]
[Date "2024.02.06"]
[Round "8"]
[White "SantoBlue"]
[Black "azikom"]
[Result "0-1"]
[WhiteElo "2972"]
[BlackElo "2718"]
[TimeControl "180+1"]
[EndTime "9:28:46 PST"]
[Termination "azikom won by resignation"]

1. e4 {[%clk 0:03:00.9]} 1... Nf6 {[%clk 0:02:59.7]} 2. e5 {[%clk 0:02:59.6]}
2... Nd5 {[%clk 0:02:59.9]} 3. d4 {[%clk 0:02:58.4]} 3... d6 {[%clk 0:02:59.8]}
4. c4 {[%clk 0:02:59.1]} 4... Nb6 {[%clk 0:03:00]} 5. f4 {[%clk 0:02:59.8]} 5...
dxe5 {[%clk 0:02:58.3]} 6. fxe5 {[%clk 0:02:59.1]} 6... Bf5 {[%clk 0:02:58.8]}
7. Nc3 {[%clk 0:02:56.5]} 7... e6 {[%clk 0:02:59.1]} 8. Be3 {[%clk 0:02:54.6]}
8... Bb4 {[%clk 0:02:59]} 9. Nf3 {[%clk 0:02:53.5]} 9... O-O {[%clk 0:02:59.3]}
10. Be2 {[%clk 0:02:51.8]} 10... c5 {[%clk 0:02:58.8]} 11. dxc5 {[%clk
0:02:44.8]} 11... Qxd1+ {[%clk 0:02:54.6]} 12. Rxd1 {[%clk 0:02:45.7]} 12... Na4
{[%clk 0:02:54.7]} 13. Kf2 {[%clk 0:02:23.7]} 13... Nxb2 {[%clk 0:02:50.5]} 14.
Rc1 {[%clk 0:02:22.2]} 14... Na6 {[%clk 0:02:46.4]} 15. Nb5 {[%clk 0:02:16.6]}
15... Nxc5 {[%clk 0:02:39]} 16. Kg3 {[%clk 0:02:03.8]} 16... Ne4+ {[%clk
0:02:25.5]} 17. Kf4 {[%clk 0:01:56.7]} 17... h6 {[%clk 0:02:15.6]} 18. h4 {[%clk
0:01:56.9]} 18... Be7 {[%clk 0:02:11]} 19. Nfd4 {[%clk 0:01:57.1]} 19... Bh7
{[%clk 0:01:59.3]} 20. h5 {[%clk 0:01:36.5]} 20... a6 {[%clk 0:01:48.8]} 21. Nc3
{[%clk 0:01:35.3]} 21... Nc5 {[%clk 0:01:41.7]} 22. Kf3 {[%clk 0:01:30.7]} 22...
Rad8 {[%clk 0:01:36.4]} 23. Rcg1 {[%clk 0:01:06.6]} 23... f6 {[%clk 0:01:31.8]}
24. Kg3 {[%clk 0:01:02.3]} 24... fxe5 {[%clk 0:01:25.8]} 25. Nf3 {[%clk
0:01:02.9]} 25... Nbd3 {[%clk 0:01:19.9]} 26. Nh4 {[%clk 0:00:49.8]} 26... e4
{[%clk 0:01:11.5]} 27. Ng6 {[%clk 0:00:47.3]} 27... Bxg6 {[%clk 0:01:11.3]} 28.
hxg6 {[%clk 0:00:48.2]} 28... Rf6 {[%clk 0:01:07.3]} 29. Bh5 {[%clk 0:00:47.5]}
29... Bd6+ {[%clk 0:01:01]} 30. Kh4 {[%clk 0:00:47.1]} 30... Bf4 {[%clk
0:00:57.9]} 31. Rh3 {[%clk 0:00:45.2]} 31... Bxe3 {[%clk 0:00:54.1]} 32. Rxe3
{[%clk 0:00:46.1]} 32... Rd4 {[%clk 0:00:51.1]} 33. g4 {[%clk 0:00:45.8]} 33...
Kf8 {[%clk 0:00:48.6]} 34. Ne2 {[%clk 0:00:44.1]} 34... Rxc4 {[%clk 0:00:47.2]}
35. Rb1 {[%clk 0:00:41.5]} 35... b5 {[%clk 0:00:46]} 36. Ng3 {[%clk 0:00:39.9]}
36... Ke7 {[%clk 0:00:45.4]} 37. g5 {[%clk 0:00:33.6]} 37... Rf4+ {[%clk
0:00:44.1]} 38. Kh3 {[%clk 0:00:34.1]} 38... hxg5 {[%clk 0:00:44.2]} 39. Be2
{[%clk 0:00:34.7]} 39... Rc2 {[%clk 0:00:40.7]} 40. Nh5 {[%clk 0:00:25.1]} 40...
Rh4+ {[%clk 0:00:39.5]} 41. Kg3 {[%clk 0:00:25.8]} 41... Rxe2 {[%clk 0:00:38.8]}
42. Rxe2 {[%clk 0:00:26.4]} 42... Rxh5 {[%clk 0:00:38.8]} 43. a4 {[%clk
0:00:27]} 43... bxa4 {[%clk 0:00:36.1]} 44. Rb8 {[%clk 0:00:27.6]} 44... Rh6
{[%clk 0:00:35.3]} 45. Kg4 {[%clk 0:00:26.8]} 45... Rxg6 {[%clk 0:00:35.1]} 46.
Rh2 {[%clk 0:00:27]} 46... Rf6 {[%clk 0:00:34.7]} 47. Rhh8 {[%clk 0:00:26.7]}
47... Rf1 {[%clk 0:00:34.2]} 48. Rbd8 {[%clk 0:00:21.2]} 48... Nd7 {[%clk
0:00:31.8]} 49. Rhe8+ {[%clk 0:00:19.3]} 49... Kd6 {[%clk 0:00:31.6]} 50. Kg3
{[%clk 0:00:16.9]} 50... e3 {[%clk 0:00:31]} 51. Ra8 {[%clk 0:00:17.3]} 51...
N3c5 {[%clk 0:00:28.9]} 0-1

[Event "Early-Titled-Tuesday-Blitz-February-06-2024"]
[Site "Chess.com"]
[Date "2024.02.06"]
[Round "8"]
[White "CarlosjPineror"]
[Black "ChessSG1"]
[Result "1-0"]
[WhiteElo "2698"]
[BlackElo "2430"]
[TimeControl "180+1"]
[EndTime "9:28:46 PST"]
[Termination "CarlosjPineror won on time"]

1. e4 {[%clk 0:03:00.9]} 1... c5 {[%clk 0:02:59]} 2. Nf3 {[%clk 0:03:00.7]} 2...
e6 {[%clk 0:02:59.3]} 3. g3 {[%clk 0:02:59.6]} 3... Nf6 {[%clk 0:02:53.8]} 4.
Qe2 {[%clk 0:02:58.8]} 4... Nc6 {[%clk 0:02:53.4]} 5. c3 {[%clk 0:02:58.4]} 5...
e5 {[%clk 0:02:52.2]} 6. Bg2 {[%clk 0:02:58.3]} 6... d6 {[%clk 0:02:48.8]} 7.
O-O {[%clk 0:02:59]} 7... g6 {[%clk 0:02:48]} 8. d4 {[%clk 0:02:58.6]} 8... cxd4
{[%clk 0:02:47.7]} 9. cxd4 {[%clk 0:02:59.5]} 9... Bg4 {[%clk 0:02:48]} 10. dxe5
{[%clk 0:02:59.2]} 10... dxe5 {[%clk 0:02:42]} 11. Nc3 {[%clk 0:02:55.5]} 11...
Nd4 {[%clk 0:02:31.8]} 12. Qd1 {[%clk 0:02:54.9]} 12... Bg7 {[%clk 0:02:25.9]}
13. Qa4+ {[%clk 0:02:53.8]} 13... Bd7 {[%clk 0:02:23.9]} 14. Qa3 {[%clk
0:02:54.4]} 14... Nc2 {[%clk 0:02:20.5]} 15. Qd6 {[%clk 0:02:51.7]} 15... Nxa1
{[%clk 0:02:07.2]} 16. Bg5 {[%clk 0:02:49.4]} 16... Qb6 {[%clk 0:01:35.7]} 17.
Qxe5+ {[%clk 0:02:38]} 17... Qe6 {[%clk 0:01:35.5]} 18. Rxa1 {[%clk 0:02:32.8]}
18... Qxe5 {[%clk 0:01:29.4]} 19. Nxe5 {[%clk 0:02:33.7]} 19... Be6 {[%clk
0:01:29.3]} 20. Nd3 {[%clk 0:02:13.4]} 20... O-O {[%clk 0:01:28.3]} 21. Nc5
{[%clk 0:02:13.4]} 21... h6 {[%clk 0:01:07.1]} 22. Bf4 {[%clk 0:02:07.7]} 22...
Nd7 {[%clk 0:00:58.3]} 23. Nxb7 {[%clk 0:01:58.9]} 23... Rac8 {[%clk 0:00:52.5]}
24. Nd6 {[%clk 0:01:47.4]} 24... Rb8 {[%clk 0:00:36.4]} 25. Ndb5 {[%clk
0:01:37.8]} 25... Be5 {[%clk 0:00:35.3]} 26. Bxe5 {[%clk 0:01:35.1]} 26... Nxe5
{[%clk 0:00:36.2]} 27. f4 {[%clk 0:01:35.4]} 27... Nc4 {[%clk 0:00:31.7]} 28. b3
{[%clk 0:01:34]} 28... Ne3 {[%clk 0:00:19.8]} 29. Nd6 {[%clk 0:01:32.6]} 29...
Nxg2 {[%clk 0:00:19]} 30. Kxg2 {[%clk 0:01:33.5]} 30... Rfd8 {[%clk 0:00:16.9]}
31. e5 {[%clk 0:01:33.6]} 31... f6 {[%clk 0:00:15.5]} 32. Rd1 {[%clk 0:01:23.4]}
32... fxe5 {[%clk 0:00:15.1]} 33. fxe5 {[%clk 0:01:23.9]} 33... Rd7 {[%clk
0:00:15.5]} 34. Nce4 {[%clk 0:01:22.2]} 34... Kg7 {[%clk 0:00:16]} 35. Nc5
{[%clk 0:01:21.7]} 35... Re7 {[%clk 0:00:13.4]} 36. Nce4 {[%clk 0:01:11.7]}
36... Bg4 {[%clk 0:00:13.6]} 37. Rd5 {[%clk 0:01:10.5]} 37... Rf8 {[%clk
0:00:09.2]} 38. Nf6 {[%clk 0:01:05.9]} 38... Be6 {[%clk 0:00:09]} 39. Rc5 {[%clk
0:01:04.7]} 39... Bd7 {[%clk 0:00:05.6]} 40. h4 {[%clk 0:00:57.7]} 40... a6
{[%clk 0:00:04.7]} 41. g4 {[%clk 0:00:48.2]} 41... g5 {[%clk 0:00:03]} 42. hxg5
{[%clk 0:00:45.3]} 42... hxg5 {[%clk 0:00:03.9]} 43. Kg3 {[%clk 0:00:46]} 43...
Kg6 {[%clk 0:00:03.9]} 44. Nde4 {[%clk 0:00:37.9]} 44... Be6 {[%clk 0:00:03]}
45. Rc6 {[%clk 0:00:33.2]} 45... Rh8 {[%clk 0:00:02.9]} 46. Rxa6 {[%clk
0:00:28.4]} 46... Rh1 {[%clk 0:00:02.7]} 47. Rd6 {[%clk 0:00:25.7]} 47... Ra1
{[%clk 0:00:02]} 48. a4 {[%clk 0:00:25.4]} 48... Ra3 {[%clk 0:00:02.2]} 49. Nc5
{[%clk 0:00:23.3]} 49... Kf7 {[%clk 0:00:02.2]} 50. Rd3 {[%clk 0:00:21.3]} 50...
Bd5 {[%clk 0:00:01.2]} 51. Nxd5 {[%clk 0:00:20.7]} 1-0

[Event "Early-Titled-Tuesday-Blitz-February-06-2024"]
[Site "Chess.com"]
[Date "2024.02.06"]
[Round "8"]
[White "goodwilll"]
[Black "Willhaven3"]
[Result "0-1"]
[WhiteElo "2499"]
[BlackElo "2621"]
[TimeControl "180+1"]
[EndTime "9:28:49 PST"]
[Termination "Willhaven3 won on time"]

1. d4 {[%clk 0:02:58.7]} 1... Nf6 {[%clk 0:02:59.8]} 2. Nf3 {[%clk 0:02:58.1]}
2... e6 {[%clk 0:02:59.3]} 3. c4 {[%clk 0:02:58.1]} 3... d5 {[%clk 0:02:58.3]}
4. Nc3 {[%clk 0:02:48.6]} 4... Bb4 {[%clk 0:02:56.7]} 5. e3 {[%clk 0:02:45.4]}
5... O-O {[%clk 0:02:55.8]} 6. Bd3 {[%clk 0:02:44.8]} 6... c5 {[%clk 0:02:53.9]}
7. O-O {[%clk 0:02:38.4]} 7... Nc6 {[%clk 0:02:53.1]} 8. cxd5 {[%clk 0:02:36.5]}
8... Nxd5 {[%clk 0:02:51.1]} 9. Bd2 {[%clk 0:02:31]} 9... cxd4 {[%clk
0:02:48.6]} 10. exd4 {[%clk 0:02:25.8]} 10... Nf6 {[%clk 0:02:48.3]} 11. Bg5
{[%clk 0:02:18.8]} 11... Be7 {[%clk 0:02:45]} 12. Rc1 {[%clk 0:02:12.4]} 12...
Nb4 {[%clk 0:02:42.4]} 13. Bb1 {[%clk 0:02:10.1]} 13... b6 {[%clk 0:02:39.2]}
14. Ne5 {[%clk 0:02:07.7]} 14... Bb7 {[%clk 0:02:38]} 15. Re1 {[%clk 0:02:06.2]}
15... Rc8 {[%clk 0:02:32.5]} 16. a3 {[%clk 0:02:04.5]} 16... Nbd5 {[%clk
0:02:31.8]} 17. Qd3 {[%clk 0:01:53]} 17... g6 {[%clk 0:02:29]} 18. Ba2 {[%clk
0:01:44.3]} 18... Nxc3 {[%clk 0:02:05.4]} 19. bxc3 {[%clk 0:01:39.2]} 19... Bxa3
{[%clk 0:01:37.3]} 20. Ng4 {[%clk 0:01:06]} 20... Be7 {[%clk 0:01:35.3]} 21.
Nh6+ {[%clk 0:01:05.7]} 21... Kg7 {[%clk 0:01:32.3]} 22. Qh3 {[%clk 0:00:50.7]}
22... Nh5 {[%clk 0:01:24.2]} 23. Bxe7 {[%clk 0:00:37.1]} 23... Qxe7 {[%clk
0:01:23.6]} 24. Nf5+ {[%clk 0:00:36.6]} 24... gxf5 {[%clk 0:01:20]} 25. Qxh5
{[%clk 0:00:36.5]} 25... Qf6 {[%clk 0:01:19.7]} 26. Re3 {[%clk 0:00:35]} 26...
Kh8 {[%clk 0:01:07.5]} 27. Rg3 {[%clk 0:00:33.4]} 27... Rg8 {[%clk 0:00:52.3]}
28. Bb3 {[%clk 0:00:17.9]} 28... Rg6 {[%clk 0:00:45.3]} 29. Qe2 {[%clk
0:00:14.8]} 29... Rxg3 {[%clk 0:00:31]} 30. hxg3 {[%clk 0:00:14.4]} 30... Qg5
{[%clk 0:00:27.3]} 31. Qe3 {[%clk 0:00:13.2]} 31... Qxe3 {[%clk 0:00:26.6]} 32.
fxe3 {[%clk 0:00:14.1]} 32... Be4 {[%clk 0:00:23.1]} 33. c4 {[%clk 0:00:12.9]}
33... Kg7 {[%clk 0:00:20.7]} 34. Ra1 {[%clk 0:00:11.7]} 34... Rc7 {[%clk
0:00:20.6]} 35. Kf2 {[%clk 0:00:10.7]} 35... Kg6 {[%clk 0:00:19.1]} 36. Ra4
{[%clk 0:00:06.1]} 36... h5 {[%clk 0:00:18]} 37. Bd1 {[%clk 0:00:05.8]} 37...
Kg5 {[%clk 0:00:16.3]} 38. Be2 {[%clk 0:00:05.7]} 38... h4 {[%clk 0:00:15.4]}
39. gxh4+ {[%clk 0:00:05.6]} 39... Kxh4 {[%clk 0:00:16.3]} 40. Ra1 {[%clk
0:00:05]} 40... Kg5 {[%clk 0:00:16]} 41. Rh1 {[%clk 0:00:04.8]} 41... Kg6 {[%clk
0:00:15.6]} 42. Rh8 {[%clk 0:00:04.3]} 42... Kg7 {[%clk 0:00:15.2]} 43. Ra8
{[%clk 0:00:03.9]} 43... Bxa8 {[%clk 0:00:14.4]} 0-1